fUSD/lending_fUSD_20240218
["ID","MTS","AMOUNT","RATE_DAILY","PERIOD"]
[314399980,1708284638441,-1000.0,0.00037891,10]
[314399982,1708284638452,-194.37278252,0.00037891,3]
[314399984,1708284638461,-1000.0,0.00037891,10]
[314399986,1708284638470,-308.02018314,0.00037891,6]
[314399988,1708284638480,-2597.06152101,0.00037891,7]
[314399989,1708284638489,-1715.53688609,0.00037891,7]
[314399991,1708284638499,-151.49155179,0.00037891,3]
[314399993,1708284638508,-176.44,0.00037913,2]
[314399995,1708284638517,-8539.0516197,0.00038082,12]
[314399997,1708284638527,-9549.61815651,0.00038082,12]
[314399999,1708284638536,-12439.56749291,0.00038082,13]
[314400000,1708284638545,-719.48,0.00038152,2]
[314400002,1708284638555,-534.19954994,0.00038321,2]
[314400004,1708284638564,-189.3,0.00038356,2]
[314400006,1708284638573,-150.0,0.00038356,2]
[314400008,1708284638582,-474.15,0.00038356,15]
[314400010,1708284638591,-1204.9,0.00038445,2]
[314400012,1708284638600,-287.0,0.000387,28]
[314400013,1708284638609,-318.66,0.000388,2]
[314400015,1708284638623,-180.0,0.0003884,2]
[314400017,1708284638632,-154.28,0.00038948,2]
[314400018,1708284638642,-150.0,0.00039,2]
[314400019,1708284638651,-150.0,0.00039,2]
[314400020,1708284638660,-300.0,0.00039,2]
[314400021,1708284638669,-354.76,0.00039,2]
[314400022,1708284638677,-534.19954994,0.00039111,2]
[314400023,1708284638689,-457.0,0.000392,28]
[314400024,1708284638699,-991.79,0.0003926,2]
[314400025,1708284638708,-405.51,0.00039315,2]
[314400026,1708284638718,-150.0,0.00039366,2]
[314400027,1708284638727,-311.05,0.00039394,4]
[314400028,1708284638736,-8206.8118827,0.000394,2]
[314400029,1708284638745,-1355.45418916,0.000396,2]
[314400031,1708284638754,-3243.09898115,0.000396,2]
[314400033,1708284638763,-1355.45418907,0.00039699,2]
[314400035,1708284638773,-423.39384167,0.000397,3]
[314400070,1708284640429,-518.18,0.00039699,2]
[314400071,1708284641267,-2085.67009705,0.00039699,2]
[314400072,1708284641391,-639.24888403,0.00039699,2]
[314400073,1708284641401,-3885.60615833,0.000397,3]
[314400074,1708284641411,-4309.0,0.000397,3]
[314400075,1708284641420,-4309.0,0.000397,3]
[314400076,1708284641429,-4309.0,0.000397,3]
[314400077,1708284641438,-4309.0,0.000397,3]
[314400078,1708284641448,-4309.0,0.000397,3]
[314400080,1708284641457,-2372.3961915,0.000397,3]
[314400115,1708284642885,-1200.0,0.000397,3]
[314400116,1708284642943,-598.71758802,0.000397,3]
[314400117,1708284642955,-137.88622048,0.000397,3]
[314400118,1708284642964,-268.53093131,0.000397,3]
[314400119,1708284643006,-4040.46906869,0.000397,3]
[314400120,1708284643016,-4309.0,0.000397,3]
[314400121,1708284643025,-1755.62146514,0.000397,3]
[314400122,1708284643037,-2553.37853486,0.000397,3]
[314400123,1708284643047,-4309.0,0.000397,3]
[314400124,1708284643056,-4309.0,0.000397,3]
[314400125,1708284643066,-4309.0,0.000397,3]
[314400126,1708284643075,-4309.0,0.000397,3]
[314400127,1708284643085,-4309.0,0.000397,3]
[314400128,1708284643095,-4309.0,0.000397,3]
[314400129,1708284643105,-4309.0,0.000397,3]
[314400130,1708284643114,-4309.0,0.000397,3]
[314400131,1708284643124,-4309.0,0.000397,3]
[314400132,1708284643133,-4309.0,0.000397,3]
[314400133,1708284643143,-152.39,0.000397,3]
[314400134,1708284643152,-152.39,0.000397,3]
[314400136,1708284643161,-152.39,0.000397,3]
[314400138,1708284643170,-152.39,0.000397,3]
[314400140,1708284643179,-152.39,0.000397,3]
[314400142,1708284643188,-152.39,0.000397,3]
[314400144,1708284643197,-152.39,0.000397,3]
[314400146,1708284643207,-152.39,0.000397,3]
[314400148,1708284643216,-318.66,0.0003977,2]
[314400150,1708284643225,-163.5984015,0.00039791,9]
[314400152,1708284643235,-710.31015465,0.00039798,12]
[314400154,1708284643244,-1355.45418907,0.00039798,2]
[314400156,1708284643253,-1344.48150558,0.000398,2]
[314400157,1708284643262,-163.59840144,0.00039807,9]
[314400159,1708284643272,-163.59840144,0.00039822,9]
[314400161,1708284643281,-163.59840144,0.00039838,9]
[314400163,1708284643290,-163.59840144,0.00039853,9]
[314400165,1708284643299,-163.59840144,0.00039869,9]
[314400167,1708284643308,-500.0,0.0003988,2]
[314400169,1708284643317,-500.0,0.0003988,2]
[314400171,1708284643327,-500.0,0.0003988,2]
[314400173,1708284643336,-500.0,0.0003988,2]
[314400175,1708284643345,-500.0,0.0003988,2]
[314400177,1708284643355,-500.0,0.0003988,2]
[314400179,1708284643364,-500.0,0.00039887,2]
[314400182,1708284643377,-500.0,0.00039887,2]
[314400184,1708284643387,-500.0,0.00039887,2]
[314400186,1708284643396,-680.0,0.00039887,2]
[314400187,1708284643406,-500.0,0.00039889,2]
[314400189,1708284643415,-500.0,0.00039889,2]
[314400192,1708284643425,-500.0,0.00039889,2]
[314400194,1708284643435,-500.0,0.00039889,2]
[314400195,1708284643445,-500.0,0.00039889,2]
[314400197,1708284643455,-561.53574121,0.00039889,2]
[314400199,1708284643465,-163.17581658,0.00039889,2]
[314400201,1708284643474,-500.0,0.00039889,2]
[314400203,1708284643483,-500.0,0.00039889,2]
[314400205,1708284643493,-500.0,0.00039889,2]
[314400207,1708284643502,-500.0,0.00039889,2]
[314400209,1708284643511,-500.0,0.00039889,2]
[314400211,1708284643521,-500.0,0.00039889,2]
[314400213,1708284643531,-500.0,0.00039889,2]
[314400215,1708284643540,-500.0,0.00039889,2]
[314400217,1708284643549,-478.91,0.00039889,2]
[314400219,1708284643559,-639.35,0.00039889,2]
[314400221,1708284643569,-1000.0,0.00039889,7]
[314400223,1708284643578,-92588.899559,0.0003989,6]
[314400225,1708284643587,-212.13735437,0.0003989,13]
[314400227,1708284643596,-3215.6252,0.0003989,2]
[314400229,1708284643605,-100000.0,0.0003989,2]
[314400231,1708284643615,-212.13735432,0.00039891,13]
[314400233,1708284643629,-212.13735432,0.00039892,13]
[314400235,1708284643639,-212.13735432,0.00039893,13]
[314400237,1708284643649,-212.13735432,0.00039894,13]
[314400239,1708284643660,-212.13735432,0.00039895,13]
[314400241,1708284643670,-212.13735432,0.00039895,13]
[314400242,1708284643679,-212.13735432,0.00039896,13]
[314400243,1708284643689,-212.13735432,0.00039897,13]
[314400244,1708284643698,-1355.45418907,0.00039898,2]
[314400245,1708284643707,-212.13735432,0.00039898,13]
[314400246,1708284643717,-328.48,0.00039899,2]
[314400247,1708284643726,-212.13735432,0.00039899,13]
[314400248,1708284643735,-500.0,0.000399,2]
[314400249,1708284643745,-21597.86642775,0.000399,2]
[314400264,1708285349623,150.0,0.00024077,2]
[314400265,1708285389204,155.0,0.00024077,2]
[314400266,1708285405219,155.0,0.00024077,2]
[314400275,1708285831991,-414.74142257,0.00024999,2]
[314400277,1708285832001,-550.0,0.00025,3]
[314400278,1708285832014,-600.0,0.00027,3]
[314400279,1708285832022,-1558.66041576,0.0003,4]
[314400280,1708285832032,-151.36047469,0.000327,2]
[314400281,1708285832041,-1279.7495,0.000329,2]
[314400282,1708285832050,-688.83,0.00032952,2]
[314400283,1708285832059,-150.0,0.00032999,3]
[314400284,1708285832069,-133.13824328,0.00033,2]
[314400285,1708285832303,-1570.86175672,0.00033,2]
[314400286,1708285832314,-11543.0,0.00033,2]
[314400288,1708285832323,-151.36047469,0.000335,2]
[314400290,1708285832335,-622.31,0.000335,2]
[314400292,1708285832345,-155.0,0.00034,4]
[314400294,1708285832355,-151.36047469,0.000343,2]
[314400296,1708285832365,-671.509905,0.0003452,2]
[314400298,1708285832373,-432.76492,0.0003452,2]
[314400301,1708285832383,-5200.12415765,0.0003452,2]
[314400304,1708285832395,-2959.89584235,0.0003452,2]
[314400306,1708285832404,-872.25086495,0.00034794,2]
[314400311,1708285832436,-135.01399305,0.00034794,2]
[314400313,1708285832446,-649.14738,0.00034794,2]
[314400315,1708285832455,-499.99,0.00034794,2]
[314400317,1708285832464,-8.28787694,0.00034794,2]
[314400319,1708285832476,-748.44402773,0.00034794,2]
[314400333,1708285837965,-334.11526571,0.00033499,4]
[314400334,1708285837975,-13780.13809533,0.00034794,2]
[314400335,1708285837985,-1683.71,0.00034804,2]
[314400336,1708285837994,-200.0,0.00034832,2]
[314400337,1708285838004,-250.0,0.00034861,2]
[314400338,1708285838013,-196.409249,0.00034881,2]
[314400339,1708285838022,-1343.019811,0.00034931,2]
[314400340,1708285838032,-865.52984,0.00034931,2]
[314400341,1708285838041,-1135.65802738,0.00035027,2]
[314400342,1708285838051,-150.99,0.00035028,2]
[314400343,1708285838060,-150.0,0.0003503,2]
[314400344,1708285838069,-154.4,0.00035066,2]
[314400345,1708285838078,-1678.774763,0.00035068,2]
[314400346,1708285838088,-1081.9123,0.00035068,2]
[314400347,1708285838097,-2000.0,0.00035069,2]
[314400348,1708285838106,-151.36047469,0.000351,2]
[314400349,1708285838116,-250.0,0.00035118,2]
[314400350,1708285838125,-2464.02,0.00035146,2]
[314400351,1708285838135,-688.83,0.00035216,2]
[314400352,1708285838144,-214.99,0.00035273,2]
[314400353,1708285838154,-154.4,0.00035327,2]
[314400354,1708285838164,-2350.284669,0.00035342,2]
[314400355,1708285838173,-1514.67722,0.00035342,2]
[314400356,1708285838182,-154.4,0.00035588,2]
[314400357,1708285838192,-154.4,0.00035849,2]
[314400358,1708285838201,-151.36047469,0.000359,2]
[314400359,1708285838211,-493.597711,0.00036,4]
[314400360,1708285838220,-154.4,0.0003611,2]
[314400361,1708285838230,-210.0,0.00036299,3]
[314400362,1708285838239,-154.4,0.00036371,2]
[314400363,1708285838248,-200.0,0.00036558,2]
[314400364,1708285838258,-500.0,0.00036558,2]
[314400365,1708285838272,-255.73,0.00036572,2]
[314400366,1708285838282,-1004.08,0.00036572,2]
[314400367,1708285838291,-200.0,0.00036631,2]
[314400368,1708285838300,-154.4,0.00036632,2]
[314400369,1708285838310,-151.36047469,0.000367,2]
[314400370,1708285838319,-150.0,0.00036704,2]
[314400371,1708285838328,-2686.039622,0.000368,2]
[314400372,1708285838338,-2541.24,0.00036866,2]
[314400373,1708285838347,-206.0,0.00036886,2]
[314400375,1708285838357,-154.4,0.00036893,2]
[314400376,1708285838366,-1189.76,0.0003692,2]
[314400377,1708285838376,-1495.84721666,0.00036934,2]
[314400378,1708285838385,-203.45903132,0.00036934,2]
[314400379,1708285838394,-209.26241083,0.00036941,2]
[314400380,1708285838403,-408.0,0.00036963,2]
[314400381,1708285838412,-682.16,0.00036986,2]
[314400382,1708285838422,-116798.62274101,0.00037034,2]
[314400383,1708285838443,-2065.8478064,0.00037034,2]
[314400384,1708285838455,-280.44865762,0.00037034,2]
[314400385,1708285838466,-1082.06924982,0.00037034,2]
[314400386,1708285838478,-756.38767,0.00037034,2]
[314400387,1708285838501,-3704.77177377,0.00037034,2]
[314400388,1708285838517,-14754.66990138,0.00037034,2]
[314400389,1708285838526,-1000.0,0.00037034,2]
[314400390,1708285838535,-170.29,0.00037041,2]
[314400391,1708285838544,-209.26241077,0.00037097,2]
[314400392,1708285838553,-23890.0,0.00037134,2]
[314400393,1708285838562,-286.9,0.00037171,2]
[314400394,1708285838571,-500.0,0.00037176,2]
[314400395,1708285838581,-500.0,0.00037201,2]
[314400396,1708285838590,-500.0,0.00037201,2]
[314400397,1708285838599,-500.0,0.00037201,2]
[314400398,1708285838788,-500.0,0.00037201,2]
[314400399,1708285838798,-500.0,0.00037201,2]
[314400400,1708285838808,-500.0,0.00037201,2]
[314400401,1708285838817,-611.42484191,0.00037201,2]
[314400402,1708285838826,-500.0,0.00037201,2]
[314400403,1708285838835,-500.0,0.00037201,2]
[314400404,1708285838844,-500.0,0.00037201,2]
[314400405,1708285838853,-300.0,0.00037201,2]
[314400406,1708285838862,-500.0,0.00037201,2]
[314400407,1708285838872,-384.59889475,0.00037201,2]
[314400408,1708285838881,-5822.9895,0.00037202,2]
[314400409,1708285838890,-209.26241077,0.00037252,2]
[314400410,1708285838899,-592.0,0.00037284,2]
[314400411,1708285838909,-1495.84721664,0.0003733,2]
[314400412,1708285838918,-209.26241077,0.00037408,2]
[314400413,1708285838927,-688.83,0.0003748,2]
[314400414,1708285838936,-151.36047469,0.000375,2]
[314400415,1708285838945,-1000.0,0.00037513,2]
[314400416,1708285838954,-209.26241077,0.00037564,2]
[314400417,1708285838963,-209.26241077,0.0003772,2]
[314400418,1708285838972,-1495.84721664,0.00037726,2]
[314400419,1708285838981,-409.11,0.000378,2]
[314400420,1708285838990,-209.26241077,0.00037875,2]
[314400421,1708285838999,-3007.71244251,0.00037891,7]
[314400422,1708285839009,-245.12763885,0.00037891,7]
[314400423,1708285839022,-1818.52752799,0.00037891,7]
[314400424,1708285839031,-214.64464229,0.00037891,6]
[314400425,1708285839040,-248.72462998,0.00037891,7]
[314400426,1708285839049,-114.42319974,0.00037891,10]
[314400427,1708285839061,-885.57680026,0.00037891,10]
[314400428,1708285839070,-209.26241077,0.00038031,2]
[314400429,1708285839079,-19585.7593169,0.00038082,14]
[314400430,1708285840603,-500.0,0.00037201,2]
[314400431,1708285840613,-1572.54938842,0.00038082,14]
[314400432,1708285840622,-5608.19380006,0.00038082,10]
[314400433,1708285840632,-995.4174361,0.00038082,11]
[314400434,1708285840641,-4347.09904223,0.00038082,13]
[314400435,1708285840650,-1495.84721664,0.00038121,2]
[314400436,1708285840660,-209.26241077,0.00038187,2]
[314400437,1708285840670,-203.4590313,0.00038262,2]
[314400438,1708285840679,-151.36047469,0.000383,2]
[314400439,1708285840688,-209.26241077,0.00038343,2]
[314400440,1708285840698,-500.0,0.00038356,2]
[314400441,1708285840707,-434.63,0.00038356,15]
[314400442,1708285840717,-150.0,0.00038356,2]
[314400443,1708285840727,-189.3,0.00038356,2]
[314400444,1708285840736,-1000.0,0.000384,2]
[314400445,1708285840745,-209.26241077,0.00038498,2]
[314400446,1708285840754,-1495.84721664,0.00038517,2]
[314400447,1708285840763,-150.0,0.00038527,7]
[314400448,1708285840773,-500.0,0.00038588,2]
[314400449,1708285840782,-209.26241077,0.00038654,2]
[314400450,1708285840791,-200.49,0.000387,2]
[314400451,1708285840800,-307.26,0.000388,2]
[314400452,1708285840809,-209.26241077,0.0003881,2]
[314400453,1708285840819,-500.0,0.00038821,2]
[314400454,1708285840828,-2594.4791849,0.00038886,2]
[314400455,1708285840837,-1495.84721664,0.00038913,2]
[314400456,1708285840847,-209.26241077,0.00038966,2]
[314400457,1708285840856,-5000.0,0.00038986,2]
[314400458,1708285840865,-5000.0,0.00038986,2]
[314400459,1708285840874,-5000.0,0.00038986,2]
[314400460,1708285840883,-5000.0,0.00038986,2]
[314400461,1708285840892,-5000.0,0.00038986,2]
[314400462,1708285840902,-352.96,0.00039,2]
[314400463,1708285840911,-500.0,0.00039053,2]
[314400464,1708285840921,-2594.47918486,0.00039065,2]
[314400465,1708285840930,-151.36047469,0.000391,2]
[314400466,1708285840939,-209.26241077,0.00039121,2]
[314400467,1708285840948,-2594.47918486,0.00039244,2]
[314400468,1708285840957,-793.43,0.0003926,2]
[314400469,1708285840966,-209.26241077,0.00039277,2]
[314400470,1708285840975,-500.0,0.00039285,2]
[314400471,1708285840985,-1495.84721664,0.00039309,2]
[314400472,1708285840994,-5000.0,0.00039358,2]
[314400473,1708285841003,-150.0,0.00039366,2]
[314400474,1708285841013,-3556.10875632,0.000394,2]
[314400475,1708285841022,-2594.47918486,0.00039423,2]
[314400476,1708285841031,-209.26241077,0.00039433,2]
[314400477,1708285841041,-422.92,0.00039452,2]
[314400478,1708285841050,-343.7,0.00039452,2]
[314400479,1708285841059,-412.33,0.00039452,2]
[314400480,1708285841069,-422.92,0.00039452,2]
[314400481,1708285841078,-343.7,0.00039452,2]
[314400482,1708285841088,-422.92,0.00039452,2]
[314400483,1708285841098,-412.33,0.00039452,2]
[314400484,1708285841107,-343.7,0.00039452,2]
[314400485,1708285841116,-419.0,0.00039452,2]
[314400486,1708285841125,-412.33,0.00039452,2]
[314400487,1708285841135,-340.7,0.00039452,2]
[314400488,1708285841145,-419.19,0.00039452,2]
[314400489,1708285841155,-419.19,0.00039452,2]
[314400490,1708285841166,-419.19,0.00039452,2]
[314400491,1708285841175,-419.19,0.00039452,2]
[314400492,1708285841185,-416.29,0.00039452,2]
[314400493,1708285841194,-500.0,0.00039517,2]
[314400494,1708285841203,-209.26241077,0.00039589,2]
[314400495,1708285841213,-203.4590313,0.0003959,2]
[314400496,1708285841222,-708.32677088,0.00039598,11]
[314400497,1708285841231,-1241.2036,0.000396,2]
[314400498,1708285841241,-250.2613,0.000396,2]
[314400499,1708285841251,-109.46610849,0.000396,11]
[314400500,1708285841268,-174.37753851,0.000396,11]
[314400501,1708285841277,-112.51246149,0.00039602,2]
[314400502,1708285841288,-377.36034275,0.00039602,2]
[314400503,1708285841299,-2104.60638062,0.00039602,2]
[314400504,1708285841309,-500.0,0.00039689,20]
[314400505,1708285841318,-500.0,0.00039689,2]
[314400506,1708285841327,-500.0,0.00039689,2]
[314400507,1708285841336,-500.0,0.00039689,2]
[314400508,1708285841346,-500.0,0.00039689,2]
[314400509,1708285841355,-500.0,0.00039689,2]
[314400510,1708285841364,-533.04450004,0.0003969,3]
[314400511,1708285841373,-18285.81822258,0.0003969,5]
[314400512,1708285841389,-2959.64473179,0.0003969,5]
[314400606,1708285843030,-2451.89167739,0.0003969,5]
[314400607,1708285843041,-23925.69770554,0.0003969,5]
[314400608,1708285843084,-5786.78726643,0.0003969,5]
[314400609,1708285843095,-17070.70254369,0.0003969,5]
[314400610,1708285843107,-567.0500003,0.0003969,5]
[314400611,1708285843194,-4151.66135601,0.0003969,5]
[314400612,1708285843211,-6775.68251314,0.0003969,5]
[314400613,1708285843250,-344.96973992,0.0003969,5]
[314400652,1708285846191,-549.39783028,0.0003969,5]
[314400653,1708285846248,-9740.59414593,0.0003969,5]
[314400654,1708285846259,-152.74855568,0.0003969,2]
[314400655,1708285846274,-274.79730847,0.00039698,2]
[314400656,1708285846284,-2133.13271976,0.00039699,2]
[314400657,1708285846294,-500.0,0.00039699,2]
[314400658,1708285846305,-500.0,0.00039699,2]
[314400659,1708285846315,-76633.46156736,0.000397,2]
[314400660,1708285846327,-998.47858802,0.000397,2]
[314400661,1708285846340,-11380.31464704,0.000397,2]
[314400662,1708285846366,-542.96175472,0.000397,2]
[314400666,1708285870398,54340.0,0.00023,2]
[314400667,1708285870429,164675.43556412,0.00023,2]
[314400668,1708285870460,1956970.87731172,0.00023,2]
[314400669,1708285870489,645219.75518977,0.00023,2]
[314400670,1708285870516,2892.0,0.00023,2]
[314400671,1708285870547,2345.23692002,0.00023,2]
[314400672,1708285870581,13900.0,0.00023,2]
[314400673,1708285870608,1568000.53749554,0.00023,2]
[314400674,1708285879603,2737.23631773,0.00021,2]
[314400675,1708285886863,1054.5905119,0.00018,2]
[314400676,1708285921525,1501.15830804,0.000155,2]
[314400677,1708286031994,441837.6834345,0.00023,2]
[314400678,1708286049388,6503.48781483,0.0002,2]
[314400679,1708286062360,155.64803381,0.00018,2]
[314400680,1708286064449,150.0,0.000137,2]
[314400682,1708286068591,14469.71565427,0.00025,30]
[314400684,1708286299555,3046.18,0.0002,2]
[314400707,1708287032229,-346.94999999,0.00023199,2]
[314400708,1708287032338,-67.79142258,0.00023199,2]
[314400709,1708287032348,-338.10645427,0.000232,2]
[314400710,1708287032360,-191.41875224,0.000232,2]
[314400711,1708287032370,-269.06572221,0.000241,2]
[314400712,1708287032380,-326.91880016,0.0002442,2]
[314400713,1708287032389,-190.75509469,0.000279,2]
[314400714,1708287032399,-38.16085633,0.00027996,2]
[314400715,1708287032447,-261.83914367,0.00027996,2]
[314400716,1708287032456,-150.0,0.00027996,2]
[314400717,1708287032682,-10307.82478837,0.00027997,2]
[314400718,1708287032697,-1266.32023516,0.00027997,2]
[314400719,1708287032706,-1211.28399637,0.00027998,2]
[314400720,1708287032716,-310.7502386,0.00027998,2]
[314400721,1708287032726,-109.17072277,0.00028,2]
[314400724,1708287038264,-746.45164787,0.00028,2]
[314400725,1708287038277,-741.27723955,0.00028,2]
[314400726,1708287038289,-420.8888349,0.00028,2]
[314400727,1708287038300,-313.89851893,0.00028,2]
[314400728,1708287038431,-848.26710872,0.00028,2]
[314400729,1708287038486,-1289.68507938,0.00028,2]
[314400730,1708287038542,-340.73018423,0.00028,2]
[314400731,1708287040853,-272.7,0.00028,2]
[314400732,1708287040866,-375.44563709,0.00028,2]
[314400733,1708287040909,-12666.41204304,0.00028,2]
[314400734,1708287040967,-2429.87254861,0.00028,2]
[314400735,1708287040982,-488.39601457,0.00028,2]
[314400736,1708287041024,-319.81331655,0.00028,2]
[314400737,1708287041036,-2984.99915667,0.00028,2]
[314400738,1708287041082,-1878.22799218,0.00028,2]
[314400739,1708287041094,-15137.07714408,0.00028,2]
[314400740,1708287041888,-604.57016637,0.00028,2]
[314400768,1708287043193,-2459.53667299,0.00028,2]
[314400769,1708287043249,-2573.13014704,0.00028,2]
[314400770,1708287043261,-400.36535376,0.00028,2]
[314400771,1708287043273,-446.51173508,0.00028,2]
[314400772,1708287043309,-2756.5299557,0.00028,2]
[314400773,1708287043423,-78838.45003592,0.00028,2]
[314400774,1708287043434,-3057.939,0.00028,2]
[314400775,1708287043444,-158.55397783,0.00030039,2]
[314400776,1708287043454,-150.99,0.00030039,2]
[314400777,1708287043464,-420.0,0.00030236,2]
[314400778,1708287043474,-152.0,0.00030796,2]
[314400779,1708287043483,-190.75509468,0.00032326,2]
[314400780,1708287043493,-664.47,0.00032351,2]
[314400781,1708287043502,-10832.0,0.000325,2]
[314400782,1708287043512,-206.0,0.00033886,2]
[314400783,1708287043522,-226.14,0.00034164,2]
[314400784,1708287043531,-673.6,0.00034229,2]
[314400785,1708287043541,-499.99,0.00034229,2]
[314400786,1708287043550,-151.53,0.00034413,2]
[314400787,1708287043559,-1852.42,0.00034417,2]
[314400788,1708287043570,-836.73,0.00034481,2]
[314400789,1708287043580,-493.695518,0.0003452,2]
[314400790,1708287043589,-1417.79,0.00034521,2]
[314400791,1708287043599,-664.47,0.00034615,2]
[314400792,1708287043609,-740.543277,0.00034794,2]
[314400793,1708287043623,-205.226507,0.00034881,2]
[314400794,1708287043633,-284.595004,0.00034881,2]
[314400795,1708287043643,-987.391036,0.00034931,2]
[314400796,1708287043653,-150.99,0.00035,30]
[314400797,1708287043663,-12780.39620958,0.00035,7]
[314400798,1708287043672,-621.79162954,0.00035,4]
[314400799,1708287043681,-169.0,0.00035,2]
[314400800,1708287043694,-1234.238796,0.00035068,2]
[314400801,1708287043704,-205.226507,0.00035317,2]
[314400802,1708287043713,-284.595004,0.00035317,2]
[314400803,1708287043724,-1727.934314,0.00035342,2]
[314400804,1708287043733,-165.52,0.00035437,2]
[314400805,1708287043742,-150.0,0.00035552,2]
[314400806,1708287043752,-196.04551824,0.00035728,4]
[314400807,1708287043761,-205.226507,0.00035753,2]
[314400808,1708287043770,-284.595004,0.00035753,2]
[314400809,1708287043780,-1417.79,0.00035798,2]
[314400810,1708287043791,-226.14,0.00035808,2]
[314400811,1708287043801,-151.53,0.00036133,2]
[314400812,1708287043810,-205.226507,0.00036189,2]
[314400813,1708287043820,-284.595004,0.00036189,2]
[314400815,1708287043829,-313.0,0.000362,9]
[314400817,1708287043838,-169.0,0.00036247,2]
[314400819,1708287043848,-4141.519639,0.00036389,2]
[314400821,1708287043857,-4141.51963895,0.00036389,2]
[314400823,1708287043866,-4141.51963895,0.00036389,2]
[314400825,1708287043875,-4141.51963895,0.00036389,2]
[314400827,1708287043885,-4141.51963895,0.00036389,2]
[314400829,1708287043894,-4141.51963895,0.00036567,2]
[314400831,1708287043903,-205.226507,0.00036625,2]
[314400833,1708287043913,-284.595004,0.00036625,2]
[314400835,1708287043922,-194.33393091,0.00036752,8]
[314400837,1708287043931,-181.58261504,0.00036752,2]
[314400839,1708287043940,-190.75509468,0.00036752,2]
[314400841,1708287043949,-206.0,0.00036787,8]
[314400843,1708287043958,-1043.71300607,0.00036798,2]
[314400845,1708287043968,-1043.71300607,0.00036798,2]
[314400847,1708287043977,-1043.71300607,0.00036798,2]
[314400849,1708287043987,-1043.71300607,0.00036798,2]
[314400851,1708287043996,-1974.782073,0.000368,2]
[314400853,1708287044006,-71786.9634933,0.00036824,10]
[314400855,1708287044016,-500.0,0.00036832,2]
[314400857,1708287044025,-500.0,0.00036832,2]
[314400859,1708287044035,-153.01650458,0.00036832,2]
[314400861,1708287044044,-500.0,0.00036832,2]
[314400863,1708287044054,-500.0,0.00036832,2]
[314400865,1708287044063,-500.0,0.00036832,2]
[314400867,1708287044074,-518.96748893,0.00036832,2]
[314400869,1708287044083,-500.0,0.00036832,2]
[314400871,1708287044092,-500.0,0.00036832,2]
[314400873,1708287044101,-500.0,0.00036832,2]
[314400875,1708287044110,-500.0,0.00036832,2]
[314400877,1708287044120,-500.0,0.00036832,2]
[314400879,1708287044130,-500.0,0.00036832,2]
[314400881,1708287044139,-500.0,0.00036832,2]
[314400883,1708287044148,-500.0,0.00036832,2]
[314400884,1708287044157,-500.0,0.00036832,2]
[314400886,1708287044167,-500.0,0.00036832,2]
[314400888,1708287044176,-764.1,0.00036832,2]
[314400890,1708287044186,-500.0,0.00036832,2]
[314400892,1708287044195,-500.0,0.00036832,2]
[314400894,1708287044204,-500.0,0.00036832,2]
[314400896,1708287044213,-500.0,0.00036832,2]
[314400898,1708287044222,-500.0,0.00036832,2]
[314400900,1708287044233,-252.12862226,0.00036832,2]
[314400903,1708287044242,-500.0,0.00036832,2]
[314400905,1708287044252,-500.0,0.00036832,2]
[314400907,1708287044261,-500.0,0.00036832,2]
[314400909,1708287044270,-500.0,0.00036832,2]
[314400911,1708287044280,-500.0,0.00036832,2]
[314400913,1708287044289,-500.0,0.00036832,2]
[314400915,1708287044300,-500.0,0.00036833,2]